bitfinex-derivatives/quotes_ETHF0:USTF0_20260203
["timestamp","ask_amount","ask_price","bid_price","bid_amount"]
[1770085623963,2.41304447,2331.7,2330.8,6.33630755]
[1770085624158,2.41304447,2331.7,2330.7,3.84184089]
[1770085624363,2.62767447,2331.7,2330.6,0.00442965]
[1770085624565,2.41304447,2331.5,2330.6,0.00442965]
[1770085624759,2.41304447,2331.5,2330.7,6.33630755]
[1770085624964,2.41304447,2331.5,2330.9,3.84184089]
[1770085625160,2.41304447,2331.5,2331.1,3.84184089]
[1770085625362,2.41304447,2331.5,2331.0,3.84184089]
[1770085625864,2.41304447,2331.5,2331.1,3.84184089]
[1770085626064,2.41304447,2331.5,2331.0,3.84184089]
[1770085626468,2.41304447,2331.5,2331.1,3.84184089]
[1770085626664,2.41304447,2331.5,2331.0,3.84184089]
[1770085627062,2.41304447,2331.3,2330.6,0.00442965]
[1770085627963,0.21466,2331.4,2330.6,2.49889631]
[1770085628170,2.41304447,2331.6,2330.6,2.49889631]
[1770085630671,2.41304447,2331.6,2330.6,0.00442965]
[1770085631469,2.41304447,2331.6,2330.6,2.49889631]
[1770085632370,2.62768447,2331.6,2330.6,0.00442965]
[1770085632571,2.62770447,2331.4,2330.6,0.00442965]
[1770085632971,2.62770447,2331.4,2330.6,2.49889631]
[1770085634972,3.004,2331.5,2330.6,2.49889631]
[1770085637176,5.41704447,2331.5,2330.6,2.49889631]
[1770085639073,2.41665541,2331.8,2330.6,2.49889631]
[1770085639278,2.41665541,2331.8,2330.6,2.71362631]
[1770085639579,2.41665541,2331.8,2330.6,2.49889631]
[1770085644080,2.41665541,2331.8,2330.6,5.0449374]
[1770085644276,2.41665541,2331.8,2330.7,2.49639827]
[1770085644980,0.00361094,2331.8,2330.8,2.49639827]
[1770085645174,0.00361094,2331.8,2330.8,5.04243936]
[1770085645480,0.00361094,2331.8,2330.9,2.49639827]
[1770085646283,0.00361094,2331.8,2331.0,2.49639827]
[1770085646879,3.004,2331.9,2331.2,2.49639827]
[1770085647179,2.0,2331.8,2331.2,2.49639827]
[1770085647375,2.37270503,2331.7,2331.1,2.54604109]
[1770085647580,2.37270503,2331.7,2330.9,5.04243936]
[1770085647783,2.37270503,2331.7,2330.8,3.81144027]
[1770085647784,2.37667029,2331.7,2330.8,2.54604109]
[1770085647975,2.37667029,2331.7,2330.7,5.04243936]
[1770085648172,2.59131029,2331.7,2330.7,2.54604109]
[1770085648375,2.59131029,2331.7,2330.6,0.00442965]
[1770085648579,2.37270503,2331.6,2330.6,0.00442965]
[1770085649082,2.37270503,2331.6,2330.6,2.50082792]
[1770085649382,2.37270503,2331.6,2330.6,0.00442965]
[1770085652084,2.37270503,2331.6,2330.6,2.50082792]
[1770085656284,2.37270503,2331.6,2330.6,0.00442965]
[1770085660591,2.37270503,2331.6,2330.6,2.50082792]
[1770085661293,2.37270503,2331.6,2330.7,2.49639827]
[1770085662192,2.37270503,2331.6,2330.6,2.55047074]
[1770085662693,2.37270503,2331.6,2330.6,2.50082792]
[1770085662994,2.37270503,2331.6,2330.7,2.49639827]
[1770085663193,2.37270503,2331.6,2330.6,0.00442965]
[1770085663790,2.37270503,2331.6,2330.7,2.49639827]
[1770085663993,2.37270503,2331.6,2330.6,0.00442965]
[1770085664895,2.37270503,2331.5,2330.6,0.00442965]
[1770085665095,2.37270503,2331.3,2330.6,0.00442965]
[1770085666694,2.37270503,2330.8,2329.9,2.57134954]
[1770085666894,2.37270503,2330.3,2329.0,3.81144027]
[1770085667094,2.37270503,2330.1,2328.8,2.49639827]
[1770085667300,2.06333812,2330.2,2328.3,6.30783854]
[1770085667301,2.37270503,2329.9,2328.3,6.30783854]
[1770085667495,2.37270503,2329.7,2328.3,6.30783854]
[1770085667695,2.37270503,2329.5,2328.3,0.00435678]
[1770085667997,2.37270503,2329.3,2328.4,2.49639827]
[1770085668192,2.37270503,2329.3,2328.4,5.04243936]
[1770085668393,2.37270503,2329.3,2328.6,2.54604109]
[1770085668595,2.37270503,2329.3,2328.7,2.54604109]
[1770085668892,2.37270503,2329.3,2328.6,2.54604109]
[1770085669297,2.37270503,2329.6,2329.0,2.54604109]
[1770085669592,7.69670503,2329.5,2328.7,5.04243936]
[1770085669897,7.69670503,2329.5,2328.8,2.54604109]
[1770085670198,2.37270503,2329.4,2328.4,2.49639827]
[1770085670499,2.37270503,2329.4,2328.4,5.04243936]
[1770085670696,2.37270503,2329.4,2328.5,2.54604109]
[1770085670890,2.37270503,2329.4,2328.6,2.38528238]
[1770085671088,2.37270503,2329.4,2328.7,4.93132347]
[1770085671289,2.37270503,2329.4,2328.9,2.54604109]
[1770085671700,5.324,2329.5,2329.1,2.54604109]
[1770085671892,5.324,2329.5,2328.9,2.54604109]
[1770085672298,5.324,2329.5,2329.0,2.54604109]
[1770085672495,5.324,2329.5,2328.9,2.54604109]
[1770085672794,1.57308523,2329.5,2329.3,2.38528238]
[1770085673001,3.00880478,2329.7,2329.1,2.54604109]
[1770085673299,3.00880478,2329.7,2329.0,3.50032397]
[1770085673496,3.00880478,2329.7,2329.0,0.95428288]
[1770085673699,3.00880478,2329.7,2329.5,2.54604109]
[1770085673891,1.68303035,2329.7,2329.5,2.54604109]
[1770085674095,4.02739035,2329.7,2329.5,1.32404109]
[1770085674399,4.02739035,2329.7,2329.6,1.32404109]
[1770085674594,4.02739035,2329.7,2329.1,1.32404109]
[1770085674899,4.03220522,2329.7,2329.2,1.32404109]
[1770085675398,4.03220522,2329.7,2329.4,1.32404109]
[1770085675599,2.34436,2329.6,2328.5,1.16606618]
[1770085675795,2.34436,2329.6,2328.8,1.32404109]
[1770085677302,2.34436,2329.6,2328.7,0.94233314]
[1770085677504,1.68784522,2329.7,2328.8,2.26637423]
[1770085677696,1.68784522,2329.7,2328.8,0.94233314]
[1770085677900,1.68784522,2329.7,2329.0,1.32404109]
[1770085678098,0.00481487,2329.7,2329.3,0.94742103]
[1770085678405,2.34436,2330.1,2329.3,0.94742103]
[1770085678601,2.34436,2330.1,2329.4,1.32404109]
[1770085678900,2.34436,2330.1,2329.0,2.26664725]
[1770085679099,2.34436,2330.1,2329.2,1.32404109]
[1770085679300,2.34988678,2330.1,2329.2,1.32404109]
[1770085679600,2.34988678,2330.1,2329.0,0.94260616]
[1770085679802,2.34988678,2330.1,2329.1,0.9481402]
[1770085680003,2.34988678,2330.1,2329.2,0.9481402]
[1770085680301,2.34988678,2330.1,2329.2,1.32404109]
[1770085682196,0.00552678,2330.1,2329.8,1.32404109]
[1770085682502,2.34436,2331.2,2330.0,1.15796344]
[1770085682696,2.34436,2331.2,2329.4,1.15801344]
[1770085682899,2.55905,2331.2,2329.4,1.15801344]
[1770085683300,2.34436,2331.0,2329.4,1.15801344]
[1770085683497,2.56458635,2331.0,2329.4,0.94643797]
[1770085684001,2.56458635,2331.0,2329.7,0.94883419]
[1770085684400,2.34988635,2331.0,2329.9,0.94883419]
[1770085684597,2.34988635,2331.0,2330.1,1.32404109]
[1770085684802,2.34988635,2331.0,2330.2,1.32404109]
[1770085685304,2.34988635,2331.0,2330.4,1.32404109]
[1770085685504,2.34988635,2331.0,2330.1,2.27287528]
[1770085685700,2.34988635,2331.0,2330.3,1.32404109]
[1770085686101,2.34988635,2331.0,2330.4,1.32404109]
[1770085686303,2.34988635,2331.0,2330.3,1.32404109]
[1770085686801,2.34988635,2331.0,2330.4,1.32404109]
[1770085687002,2.34988635,2331.0,2330.3,1.32404109]
[1770085687505,2.34988635,2331.0,2330.4,1.32404109]
[1770085687699,2.34988635,2331.0,2330.3,1.32404109]
[1770085688096,2.34988635,2331.0,2330.4,1.32404109]
[1770085688401,2.34988635,2331.0,2330.3,1.32404109]
[1770085688804,2.34988635,2331.0,2330.4,1.32404109]
[1770085689007,2.34988635,2331.0,2330.3,1.32404109]
[1770085689214,1.12236,2330.0,2328.7,3.81144027]
[1770085689505,1.12236,2330.0,2328.6,7.17002395]
[1770085689506,8.109,2329.9,2328.6,2.07032883]
[1770085689703,3.005,2329.9,2328.9,2.38528238]
[1770085690307,3.005,2329.9,2329.1,2.38854691]
[1770085690705,3.005,2329.9,2329.2,0.00326453]
[1770085691407,5.34936,2329.9,2329.2,0.00326453]
[1770085692806,3.005,2329.9,2329.2,2.38854691]
[1770085693105,5.34936,2329.9,2329.3,0.00326453]
[1770085693607,3.005,2329.9,2329.5,0.00326453]
[1770085693804,3.005,2329.9,2329.3,2.38854691]
[1770085694208,3.005,2329.9,2329.5,0.00326453]
[1770085694606,3.005,2329.9,2329.6,0.00326453]
[1770085694805,2.34436,2329.8,2328.9,0.00484874]
[1770085695210,2.34436,2329.8,2328.9,0.00811327]
[1770085695412,2.34436,2329.8,2328.9,0.00484874]
[1770085696004,2.34436,2329.8,2328.9,0.00811327]
[1770085696406,3.005,2329.9,2329.2,2.38854691]
[1770085696615,3.005,2329.9,2328.9,0.00484874]
[1770085696616,3.005,2329.9,2329.3,2.38854691]
[1770085697115,3.005,2329.9,2329.5,0.00326453]
[1770085697310,3.005,2329.9,2329.3,2.38528238]
[1770085697511,3.005,2329.9,2329.6,0.00326453]
[1770085698013,3.005,2329.9,2329.8,0.00326453]
[1770085698210,3.005,2329.9,2329.3,2.38528238]
[1770085698211,3.005,2329.9,2329.6,0.00326453]
[1770085698615,2.34436,2329.8,2328.9,0.00484874]
[1770085698814,2.34436,2329.8,2329.0,0.00326453]
[1770085699016,3.005,2329.9,2328.9,2.39013112]
[1770085699315,3.005,2329.9,2329.2,2.38854691]
[1770085699815,3.005,2329.9,2329.4,0.00326453]
[1770085700016,4.86236,2330.1,2329.4,0.00326453]
[1770085700313,4.86236,2330.1,2329.2,2.38528238]
[1770085700515,4.86236,2330.1,2329.3,0.00326453]
[1770085700712,2.48650204,2331.0,2330.0,0.00326453]
[1770085701017,2.48097569,2330.6,2329.2,6.20813509]
[1770085701212,2.48097569,2330.6,2329.2,2.39669482]
[1770085701408,2.48097569,2330.6,2329.3,2.39995935]
[1770085701814,2.48097569,2330.6,2329.4,2.39995935]
[1770085702013,2.48097569,2330.6,2329.4,2.39669482]
[1770085702214,2.48097569,2330.6,2329.4,2.39995935]
[1770085704016,2.48097569,2330.6,2329.5,2.39995935]
[1770085704216,2.48097569,2330.6,2329.5,2.39669482]
[1770085704415,2.48097569,2330.6,2329.5,2.39995935]
[1770085705516,2.69571569,2330.6,2329.2,2.39669482]
[1770085705723,2.48097569,2330.5,2329.2,2.39669482]
[1770085706117,2.48097569,2330.4,2329.2,2.39669482]
[1770085706317,2.48097569,2330.6,2329.2,2.39669482]
[1770085706518,2.48097569,2330.7,2329.8,2.39995935]
[1770085706720,2.48650204,2331.0,2329.8,2.39669482]
[1770085707022,2.48650204,2331.0,2330.1,0.00326453]
[1770085707419,0.00552635,2331.0,2330.5,2.39995935]
[1770085707624,0.00552635,2331.0,2330.2,2.39995935]
[1770085707825,0.00552635,2331.0,2330.5,2.39995935]
[1770085708022,0.00552635,2331.0,2330.5,2.39669482]
[1770085708223,0.00552635,2331.0,2330.7,0.00326453]
[1770085708419,0.00552635,2331.0,2330.7,0.00702747]
[1770085708719,0.00552635,2331.0,2330.8,0.00326453]
[1770085708924,3.006,2331.5,2330.9,0.00326453]
[1770085709224,5.48697569,2331.5,2330.8,0.00326453]
[1770085709621,5.48697569,2331.5,2330.9,0.00326453]
[1770085709926,5.49153862,2331.5,2330.8,0.00326453]
[1770085710124,2.48097569,2331.4,2330.7,0.00376294]
[1770085710524,3.01056293,2331.5,2330.9,0.00326453]
[1770085710722,3.01056293,2331.5,2330.8,0.00326453]
[1770085710922,3.01056293,2331.5,2330.9,0.00326453]
[1770085711118,3.01056293,2331.5,2330.8,0.00326453]
[1770085711324,3.01056293,2331.5,2331.0,2.39995935]
[1770085711523,3.01056293,2331.5,2331.0,0.00326453]
[1770085711728,5.49153862,2331.5,2331.1,0.00326453]
[1770085711923,5.49153862,2331.5,2331.0,0.00326453]
[1770085712324,5.49153862,2331.5,2331.1,0.00326453]
[1770085712627,5.49153862,2331.5,2331.0,0.00326453]
[1770085712832,2.48097569,2331.4,2330.7,0.00376294]
[1770085713222,2.48097569,2331.4,2330.7,0.00702747]
[1770085713424,3.01056293,2331.5,2331.0,0.00326453]
[1770085713627,5.49153862,2331.5,2331.1,0.00326453]
[1770085713827,5.49153862,2331.5,2330.9,0.00326453]
[1770085714028,2.48097569,2331.4,2330.8,0.00326453]
[1770085714531,2.48097569,2331.4,2330.9,0.00326453]
[1770085714728,2.48097569,2331.4,2330.8,0.00326453]
[1770085715128,2.48097569,2331.4,2330.9,0.00326453]
[1770085715329,2.48097569,2331.4,2330.8,0.00326453]
[1770085715529,2.48097569,2331.4,2330.1,2.39669482]
[1770085715730,2.48097569,2331.4,2330.3,0.00326453]
[1770085716130,2.48097569,2331.4,2330.4,0.00326453]
[1770085716335,2.48097569,2331.4,2330.1,2.39669482]
[1770085716632,2.48097569,2331.4,2330.3,0.00326453]
[1770085716931,2.48097569,2331.4,2330.3,0.00809441]
[1770085717124,2.48097569,2331.4,2330.4,0.00326453]
[1770085718023,2.48097569,2331.4,2330.5,0.00326453]
[1770085718428,2.48097569,2331.4,2330.6,0.00326453]
[1770085718627,2.48097569,2331.4,2330.5,0.00326453]
[1770085719534,2.48097569,2331.4,2330.3,0.00482988]
[1770085719733,2.48097569,2331.4,2330.4,0.00326453]
[1770085720133,2.48097569,2331.4,2330.5,0.00326453]
[1770085720334,2.48097569,2331.4,2330.4,0.00326453]
[1770085720732,2.48097569,2331.4,2330.5,0.00326453]
[1770085720932,2.48097569,2331.4,2330.4,0.00326453]
[1770085721531,2.48097569,2331.4,2330.5,0.00326453]
[1770085721731,2.48097569,2331.4,2330.4,0.00326453]
[1770085722134,2.48097569,2331.4,2330.3,0.00809441]
[1770085722333,2.48097569,2331.4,2330.3,0.00482988]
[1770085722633,2.48097569,2331.4,2330.4,2.39669482]
[1770085722834,2.48097569,2331.4,2330.5,0.00326453]
[1770085723133,2.48097569,2331.4,2330.6,0.00326453]
[1770085723328,2.48097569,2331.4,2330.5,0.00326453]
[1770085723834,2.48097569,2331.4,2330.6,0.00326453]
[1770085724226,2.48097569,2331.4,2330.8,0.00326453]
[1770085724430,2.48097569,2331.4,2330.3,0.00482988]
[1770085724734,2.48097569,2331.4,2330.5,0.00326453]
[1770085724934,2.48097569,2331.4,2330.6,0.00326453]
[1770085725236,2.48097569,2331.4,2330.5,0.00326453]
[1770085725735,2.48097569,2331.4,2330.6,0.00326453]
[1770085725931,2.48097569,2331.4,2330.5,0.00326453]
[1770085726338,2.69563569,2331.4,2330.6,0.00326453]
[1770085726531,2.48097569,2331.2,2330.3,0.00482988]
[1770085727237,2.48097569,2331.2,2330.3,2.4015247]
[1770085727436,2.48097569,2331.2,2330.3,0.00482988]
[1770085727838,2.48097569,2330.9,2329.7,4.95654223]
[1770085728037,2.48097569,2330.8,2329.6,2.55984741]
[1770085728338,2.48097569,2330.6,2329.2,2.55984741]
[1770085728730,2.48097569,2330.6,2329.2,4.96122346]
[1770085729137,0.21475,2330.5,2329.2,4.96122346]
[1770085729336,2.48097569,2330.4,2329.2,4.96122346]
[1770085729738,2.48097569,2330.4,2329.2,0.00468123]
[1770085730441,2.70394882,2330.2,2329.2,0.00468123]
[1770085730636,2.70394882,2330.2,2328.7,3.81144027]
[1770085730637,2.46558442,2330.0,2328.7,2.55984741]
[1770085730840,2.46558442,2330.0,2328.6,4.97101192]
[1770085731240,2.46558442,2330.0,2328.6,2.41116451]
[1770085731641,2.46558442,2330.0,2328.6,2.41524023]
[1770085737148,2.46558442,2330.0,2328.6,0.00407572]
[1770085737348,2.46558442,2329.8,2328.6,0.00407572]
[1770085737547,2.47082517,2329.8,2328.6,0.00407572]
[1770085738145,2.46558442,2329.5,2328.6,0.00407572]
[1770085739754,2.46558442,2329.5,2328.3,2.40800005]
[1770085740758,2.46558442,2329.7,2328.3,2.41318465]
[1770085741055,2.46558442,2329.7,2328.4,0.21494]
[1770085741252,2.46558442,2329.4,2328.3,0.0051846]
[1770085741751,2.47082517,2329.8,2328.4,2.41116451]
[1770085742860,0.00524075,2329.8,2328.7,2.41116451]
[1770085743062,0.00524075,2329.8,2328.7,2.62607451]
[1770085744254,2.47082517,2329.8,2328.7,2.62607451]
[1770085744964,2.47082517,2329.8,2328.7,2.41116451]
[1770085746258,2.68564517,2329.8,2328.7,2.41116451]
[1770085748660,2.47082517,2329.8,2328.7,2.41116451]
[1770085748963,0.00524075,2329.8,2328.7,2.41116451]
[1770085749263,0.00524075,2329.8,2328.7,2.62607451]
[1770085749563,0.00524075,2329.8,2328.9,2.41116451]
[1770085750663,2.47082517,2329.8,2328.9,2.41116451]
[1770085750961,0.00524075,2329.8,2328.9,2.41116451]
[1770085751967,8.03658442,2330.3,2329.1,2.41116451]
[1770085752563,5.47158442,2330.3,2329.1,2.41116451]
[1770085752865,3.006,2330.3,2329.1,2.62603451]
[1770085753066,3.01069287,2330.3,2329.2,2.41116451]
[1770085753264,5.47627729,2330.3,2329.2,2.41116451]
[1770085753763,5.47627729,2330.3,2329.1,2.55984741]
[1770085753764,2.46558442,2330.2,2329.1,2.55984741]
[1770085753961,2.68035442,2330.2,2328.9,4.97101192]
[1770085754566,2.46558442,2329.9,2328.7,2.55984741]
[1770085754767,2.46558442,2329.9,2328.7,4.97101192]
[1770085754964,2.46558442,2329.9,2328.8,2.41116451]
[1770085756268,2.46558442,2329.9,2328.8,4.97101192]
[1770085756860,2.46558442,2329.9,2328.8,4.95901192]
[1770085757369,2.46558442,2329.9,2328.8,2.55984741]
[1770085757567,2.46558442,2329.9,2328.9,2.55984741]
[1770085758167,0.21479,2330.0,2329.0,2.55984741]
[1770085758471,2.68037442,2330.0,2329.0,2.55984741]
[1770085758967,2.68037442,2330.0,2329.1,2.41116451]
[1770085762772,2.68037442,2330.0,2329.0,2.55984741]
[1770085762974,2.68037442,2330.0,2328.9,2.55984741]
[1770085763776,2.39226293,2329.8,2328.8,2.55984741]
[1770085764172,2.39226293,2329.8,2328.7,2.55984741]
[1770085764372,2.39226293,2329.8,2328.8,2.55984741]
[1770085764373,2.60707293,2329.8,2328.8,2.55984741]
[1770085764671,2.39226293,2329.4,2328.7,2.55984741]
[1770085764973,2.39226293,2329.4,2328.5,2.55984741]
[1770085765872,2.39226293,2329.4,2328.6,2.50977541]
[1770085766077,2.39226293,2329.7,2328.8,2.50977541]
[1770085766977,2.39226293,2329.7,2328.7,2.55984741]
[1770085767476,2.39226293,2329.7,2328.6,2.55984741]
[1770085767670,2.60708293,2329.7,2328.6,2.55984741]
[1770085767869,2.60708293,2329.7,2328.5,3.81144027]
[1770085767870,2.60708293,2329.7,2328.5,2.55984741]
[1770085768071,2.39226293,2329.6,2328.5,2.55984741]
[1770085768978,2.39226293,2329.6,2328.5,5.06962282]
[1770085769979,2.39226293,2329.6,2328.6,2.50977541]
[1770085770180,2.39226293,2329.6,2328.8,2.50977541]
[1770085770975,3.006,2329.8,2328.8,2.50977541]
[1770085771181,3.006,2329.8,2329.0,2.50977541]
[1770085772182,3.006,2329.8,2329.1,2.50977541]
[1770085772678,3.006,2329.8,2329.2,2.50977541]
[1770085774380,2.39226293,2330.0,2329.2,2.50977541]
[1770085774982,2.39226293,2330.0,2329.1,2.55984741]
[1770085776183,2.39226293,2330.0,2329.0,2.55984741]
[1770085776982,2.60705293,2330.0,2328.9,2.55984741]
[1770085777183,2.39226293,2329.8,2328.9,2.55984741]
[1770085778785,2.39226293,2329.8,2329.0,2.50977541]
[1770085779987,2.52313449,2330.1,2329.2,2.50977541]
[1770085779988,2.39226293,2330.1,2329.2,2.50977541]
[1770085780283,2.39226293,2330.1,2329.1,5.06962282]
[1770085783586,2.39226293,2330.1,2329.1,2.50977541]
[1770085783786,2.39226293,2330.1,2329.1,5.06962282]
[1770085785985,2.39226293,2330.1,2329.2,2.50977541]
[1770085786188,2.74259736,2330.3,2329.2,2.50977541]
[1770085786485,2.39226293,2330.2,2329.2,2.50977541]
[1770085787787,2.39226293,2330.2,2329.3,2.50977541]
[1770085789290,0.00469287,2330.3,2329.4,2.50977541]
[1770085789582,2.3969558,2330.3,2329.6,5.06962282]
[1770085789888,2.3969558,2330.3,2329.6,2.55984741]
[1770085790091,2.3969558,2330.3,2329.5,2.55984741]
[1770085790285,2.3969558,2330.3,2329.5,4.8450839]
[1770085790486,2.3969558,2330.3,2329.6,2.48068723]
[1770085790686,0.00469287,2330.3,2329.6,5.04053464]
[1770085790886,2.42677629,2330.6,2329.7,2.48068723]
[1770085791188,2.42677629,2330.6,2329.8,2.48068723]
[1770085792090,2.43030556,2330.6,2329.8,2.48068723]
[1770085793892,0.00352927,2330.6,2329.8,2.48068723]
[1770085794793,7.752,2330.8,2329.8,2.48068723]
[1770085795895,7.75524319,2330.8,2329.8,2.48068723]
[1770085796294,10.18201948,2330.8,2329.8,2.48068723]
[1770085797298,2.42677629,2330.7,2329.8,2.48068723]
[1770085798897,2.41477629,2330.7,2329.8,2.48068723]
[1770085800699,10.27837768,2330.8,2329.3,2.55984741]
[1770085800899,2.42677629,2330.6,2329.2,5.04053464]
[1770085801198,2.42677629,2330.6,2329.4,2.48068723]
[1770085801799,2.42677629,2330.4,2329.2,5.04053464]
[1770085801995,2.42677629,2329.8,2328.9,2.55984741]
[1770085802201,2.64160629,2329.6,2328.4,2.48068723]
[1770085802400,2.64160629,2329.6,2328.3,2.48587183]
[1770085802601,2.42677629,2329.6,2328.5,2.48068723]
[1770085803000,2.42677629,2329.9,2328.6,2.48068723]
[1770085803200,2.42677629,2329.9,2328.7,2.48068723]
[1770085803400,2.42677629,2329.9,2328.8,2.48068723]
[1770085804494,2.42677629,2329.9,2328.5,2.55984741]
[1770085804801,2.64159629,2329.7,2328.3,2.56503201]
[1770085805301,2.42677629,2329.3,2328.3,0.0051846]
[1770085805501,2.42677629,2329.2,2328.3,0.0051846]
[1770085806598,2.42677629,2329.2,2328.3,2.48587183]
[1770085807702,37.94574962,2330.0,2328.3,2.48587183]
[1770085807703,2.51457724,2330.1,2328.4,2.69562723]
[1770085807903,3.006,2330.2,2329.0,2.48068723]
[1770085808099,3.006,2330.2,2329.1,2.48068723]
[1770085808305,3.006,2330.2,2329.2,2.48068723]
[1770085808501,3.514,2330.7,2329.2,2.48068723]
[1770085808805,2.42677629,2330.6,2329.3,2.48068723]
[1770085809299,2.42677629,2330.6,2329.3,2.69554723]
[1770085810010,2.42677629,2330.6,2329.3,2.48068723]
[1770085811200,2.42677629,2330.6,2329.5,2.48068723]
[1770085815508,2.42677629,2330.6,2329.3,2.55984741]
[1770085815711,2.42677629,2330.6,2329.3,5.04053464]
[1770085816413,2.64154629,2330.3,2328.9,5.04053464]
[1770085816912,2.64154629,2330.3,2329.0,2.48068723]
[1770085821520,2.64154629,2330.3,2328.8,5.1354645]
[1770085822325,2.64154629,2330.3,2328.9,2.36071709]
[1770085823423,2.28687709,2330.1,2328.8,2.55984741]
[1770085823625,2.28687709,2330.0,2328.7,4.9205645]
[1770085823823,2.28687709,2329.7,2328.7,2.36071709]
[1770085824018,2.28687709,2329.7,2328.4,4.9205645]
[1770085824220,2.50169709,2329.7,2328.4,4.9205645]
[1770085824425,2.50169709,2329.7,2328.4,2.36071709]
[1770085824723,2.51457724,2330.0,2328.3,3.0111846]
[1770085824724,2.28687709,2329.5,2328.3,3.0111846]
[1770085825225,2.50171709,2329.5,2328.3,0.0051846]
[1770085825725,2.28687709,2329.3,2328.3,0.0051846]
[1770085826017,2.28687709,2329.3,2328.3,2.36590169]
[1770085826616,4.80145433,2329.9,2328.3,2.36590169]
[1770085826825,2.28687709,2329.9,2328.7,2.36071709]
[1770085827019,2.28687709,2330.2,2328.9,2.36071709]
[1770085827418,2.28687709,2330.2,2329.0,2.36071709]
[1770085828324,2.50164709,2330.2,2328.8,2.36071709]
[1770085828524,2.50166709,2330.0,2328.6,2.55984741]
[1770085828716,2.51457724,2330.4,2328.4,5.56584741]
[1770085828717,2.28687709,2329.8,2328.4,5.56584741]
[1770085828920,2.50168709,2329.8,2328.4,7.9265645]
[1770085829122,2.50168709,2329.8,2328.5,2.36071709]
[1770085829830,2.28687709,2329.8,2328.7,2.36071709]
[1770085830025,2.28687709,2329.8,2328.8,2.36071709]
[1770085830419,2.28687709,2329.8,2328.6,2.77476741]
[1770085830725,2.28687709,2329.8,2328.6,5.1354845]
[1770085831227,2.28687709,2329.8,2328.6,4.9205645]
[1770085831729,2.28687709,2329.8,2328.6,2.36071709]
[1770085834724,2.28687709,2329.8,2328.4,5.56584741]
[1770085835131,2.28687709,2329.8,2328.4,7.9265645]
[1770085835831,2.28687709,2329.8,2328.5,2.36071709]
[1770085836031,2.28687709,2329.6,2328.5,2.36071709]
[1770085836334,2.28687709,2329.6,2328.6,2.36071709]
[1770085837531,2.28687709,2329.6,2328.5,2.55984741]
[1770085838633,2.28687709,2329.6,2328.4,2.55984741]
[1770085839136,2.28687709,2329.6,2328.3,4.9257491]
[1770085840732,2.28687709,2329.4,2328.3,4.9257491]
[1770085841034,2.50174709,2329.2,2328.3,0.0051846]
[1770085842033,2.28687709,2329.5,2328.3,2.36590169]
[1770085842330,2.28687709,2329.5,2328.4,2.36071709]
[1770085843728,2.28687709,2329.5,2328.3,0.0051846]
[1770085844926,2.28687709,2329.0,2328.3,0.0051846]
[1770085845135,2.29130398,2329.0,2328.3,0.0051846]
[1770085846632,2.28687709,2328.8,2327.9,2.55984741]
[1770085846834,2.50180709,2328.5,2327.3,2.55984741]
[1770085847027,2.50182709,2328.3,2327.1,2.55984741]
[1770085847226,2.28687709,2328.1,2327.0,4.9205645]
[1770085847426,2.28687709,2328.1,2327.0,2.36071709]
[1770085847630,2.28687709,2328.1,2327.0,2.36597975]
[1770085848033,2.28687709,2328.1,2327.0,0.00526266]
[1770085848335,2.28687709,2327.9,2326.4,4.9205645]
[1770085848534,2.28687709,2327.9,2326.4,2.36071709]
[1770085849433,3.223,2327.8,2326.4,2.36587596]
[1770085849636,2.28687709,2327.7,2326.4,2.36587596]
[1770085850137,2.28687709,2327.7,2326.4,2.58099596]
[1770085851437,2.28687709,2327.7,2326.4,2.36587596]
[1770085856239,2.50187709,2327.7,2326.4,2.36587596]
[1770085856444,6.231,2327.8,2326.4,2.36587596]
[1770085856445,2.42588776,2327.5,2326.4,0.00515887]
[1770085856838,2.64090776,2327.5,2326.4,0.00515887]
[1770085857342,2.42588776,2327.3,2326.4,0.00515887]
[1770085857542,2.43014273,2327.3,2326.4,2.51999127]
[1770085857741,0.00425497,2327.3,2326.4,2.51999127]
[1770085858043,2.43014273,2327.3,2326.4,2.51999127]
[1770085858643,0.00425497,2327.3,2326.4,2.51999127]
[1770085859144,0.00425497,2327.3,2326.4,2.73511127]
[1770085860846,2.42588776,2328.5,2327.1,2.7298924]
[1770085861039,2.42588776,2328.5,2326.2,6.3746189]
[1770085861242,0.21542,2323.2,2321.7,5.10000208]
[1770085861541,0.21542,2323.2,2320.9,7.65000312]
[1770085861542,4.95782506,2322.1,2321.0,59.26851733]
[1770085861742,2.47801033,2321.7,2320.9,11.21361615]
[1770085861946,2.47816873,2321.0,2320.5,2.53476765]
[1770085862140,6.11860626,2320.9,2320.6,68.36360202]
[1770085862341,0.00452407,2321.0,2320.5,0.00448256]
[1770085862342,6.11860626,2320.8,2320.5,0.00448256]
[1770085862645,14.51160626,2320.7,2320.5,0.00448256]
[1770085862844,14.51160626,2320.7,2320.5,2.56e-06]
[1770085862845,6.11860626,2320.6,2320.5,2.56e-06]
[1770085863046,6.11860626,2320.6,2319.3,2.53476765]
[1770085863247,7.11806994,2320.5,2319.7,34.08848757]
[1770085863448,0.00452407,2321.0,2318.5,2.59601908]
[1770085863645,48.766,2321.5,2318.8,0.21583]
[1770085863843,11.1934487,2322.1,2318.8,2.6154205]
[1770085864049,10.9779187,2322.2,2319.5,0.21576]
[1770085864248,0.68334368,2322.1,2319.6,6.02]
[1770085864546,6.391,2322.0,2319.8,21.39609019]
[1770085864747,8.0,2321.9,2320.2,21.39609019]
[1770085864946,0.68334368,2321.8,2320.0,21.39609019]
[1770085865148,0.68334368,2321.8,2319.8,2.5148324]
[1770085865347,0.89895368,2321.2,2319.7,13.37270393]
[1770085865641,0.68334368,2320.2,2318.6,0.02155246]
[1770085865842,0.68334368,2320.0,2318.6,12.3737581]
[1770085866041,1.3504897,2319.8,2318.6,12.3737581]
[1770085866244,0.00326048,2319.8,2318.7,2.5148324]
[1770085866441,3.51174034,2322.4,2318.6,12.37697668]
[1770085866442,1.3504897,2321.7,2319.1,2.5148324]
[1770085866640,1.3504897,2321.5,2319.1,2.5148324]
[1770085866847,1.3504897,2321.5,2319.2,14.86703804]
[1770085867049,1.3504897,2321.5,2319.2,2.5148324]
[1770085867245,0.21564,2320.8,2318.6,0.02477104]
[1770085867441,1.3504897,2320.3,2318.6,0.02477104]
[1770085867652,1.3504897,2320.1,2318.6,0.02477104]
[1770085867946,2.02162609,2319.9,2318.6,12.37697668]
[1770085868244,2.02162609,2319.8,2318.6,12.37697668]
[1770085868445,2.02162609,2320.6,2319.1,2.5148324]
[1770085868649,2.02162609,2320.5,2319.1,2.5148324]
[1770085868849,2.02162609,2320.5,2319.2,12.35220564]
[1770085869245,2.23730609,2320.5,2318.7,2.5148324]
[1770085869441,2.02162609,2320.3,2318.8,12.35220564]
[1770085869642,2.02162609,2320.3,2317.5,3.25195]
[1770085869643,2.02162609,2319.3,2316.7,2.5148324]
[1770085869952,2.02162609,2318.7,2316.7,2.5148324]
[1770085870149,1.93068848,2318.5,2316.8,14.85745775]
[1770085870344,1.93068848,2318.5,2316.4,2.5148324]